Cogmind - Beta 10.2 @@@ ROGUE MODE // 2021.04.01 @ 21:46:03 Player: Nalzok Result: Destroyed by G-67 Veteran with Plasma Rifle Performance ------------- Evolutions (7) 3500 Regions Visited (27) 5400 Robots Destroyed (218) 1090 Value Destroyed (10844) 10844 Prototype IDs (54) 1080 Alien Tech Used (0) 0 Bonus (4282) 4282 TOTAL SCORE: 26196 Bonus ------- High Alert Combat Kills 826 Follower Combat Kills 2008 Entered Garrisons 600 Used RIF Installer 1500 Aligned with FarCom 300 Met Data Miner 300 Friendly Fire -1252 Cogmind --------- Core Integrity 0/1300 Matter 0/300 Energy 99/100 System Corruption 19% Temperature Cool (33) Movement Core (50) Location -3/Research Parts ------- > --- POWER (2) -------- (None) > --- PROPULSION (4) --- (None) > --- UTILITY (10) ----- (None) > --- WEAPON (5) ------- (None) > --- INVENTORY (4) ---- Field Propulsion Array Advanced Remote Datajack Ionic Axe Peak State ------------ > --- POWER ------------ Light Particle Reactor Light Particle Reactor > --- PROPULSION ------- Heavy Treads Centrium Wheel Improved Antigrav System > --- UTILITY ---------- Advanced Power Amplifier Advanced Coolant Injector High-capacity Storage Unit Enhanced Optical Array Improved Melee Analysis Suite Advanced Target Analyzer Focal Shield Advanced Force Field Makeshift System Shield Advanced System Shield > --- WEAPON ----------- Gamma Rifle Railgun Linear Accelerator Linear Accelerator Makeshift Axe > --- INVENTORY -------- Reinforced Antimatter Reactor Advanced Heat Sink High-capacity Storage Unit Advanced Target Analyzer Energy Filter Improved Focal Shield Trap Reconfigurator Gamma Rifle Disruptor Cannon Compact HERF Cannon Slug Cannon Improved Remote Datajack [Rating: 138] Favorites ----------- Power Improved Deuterium Engine Engine Improved Deuterium Engine Power Core Micro Fission Core Reactor Light Particle Reactor Propulsion Aluminum Leg Treads Centrium Heavy Treads Leg Aluminum Leg Wheel Centrium Wheel Hover Unit Improved Antigrav System Flight Unit VTOL Module Utility Improved Heat Sink Device Improved Heat Sink Storage High-capacity Storage Unit Processor Advanced Targeting Computer Hackware Relay Coupler [NC] Protection Improved Light Armor Plating Weapon Heavy Flak Cannon Energy Gun High-powered Electrolaser Energy Cannon Advanced Beam Cannon Ballistic Gun Flak Gun Ballistic Cannon Heavy Flak Cannon Launcher Shock Bomb Launcher Special Weapon Remote Datajack Slashing Weapon Power Sword Build | -11 -10 -10 -9 -9 -9 -8 -8 -8 -7 -7 -7 -7 -6 -6 -6 -5 -5 -5 -5 -5 -5 -4 -4 -4 -3 -3 -3 ------- Run | Scr Mat Min Mat Min Exi Min Mat Sto Fac Gar Fac Gar Fac Low Dat Pro Fac Ext Cet Arc Hub Fac Upp Upp Res Gar Res Slots Evolved 14 | . . . 2 . . . 2 . 2 . . . 2 . . . 2 . . . . 2 . . 2 . . Power 1 | . . . . . . . . . . . . . 1 . . . . . . . . . . . . . . Propulsion 2 | . . . . . . . . . . . . . . . . . 2 . . . . . . . . . . Utility 8 | . . . 2 . . . . . 2 . . . 1 . . . . . . . . 2 . . 1 . . Weapon 3 | . . . . . . . 2 . . . . . . . . . . . . . . . . . 1 . . Parts Attached 420 | . 3 2 12 7 2 . . 23 6 43 20 25 26 . . 13 35 49 30 10 3 22 20 5 24 39 1 Power 50 | . . . 1 2 . . . 1 . 5 1 4 2 . . 2 7 4 5 2 1 3 4 . 4 2 . Engine 19 | . . . 1 2 . . . 1 . 2 . 4 2 . . 2 1 1 . . . 1 2 . . . . Core 16 | . . . . . . . . . . 3 1 . . . . . 6 2 1 1 . . 2 . . . . Reactor 15 | . . . . . . . . . . . . . . . . . . 1 4 1 1 2 . . 4 2 . Propulsion 99 | . . 2 2 3 . . . 7 . 14 4 7 5 . . 4 4 22 5 . . 4 5 1 2 8 . Treads 5 | . . . . . . . . . . . . . . . . . . . 3 . . . 1 . 1 . . Leg 80 | . . 2 2 3 . . . 7 . 14 4 7 5 . . 4 4 18 2 . . . 4 1 . 3 . Wheel 6 | . . . . . . . . . . . . . . . . . . 2 . . . 4 . . . . . Hover 6 | . . . . . . . . . . . . . . . . . . . . . . . . . 1 5 . Flight 2 | . . . . . . . . . . . . . . . . . . 2 . . . . . . . . . Utility 118 | . 2 . 6 . 2 . . 2 6 9 7 7 6 . . 3 7 8 10 4 2 6 6 3 12 10 . Device 60 | . . . 2 . . . . 2 4 8 1 4 2 . . 2 4 3 6 4 1 3 3 1 4 6 . Storage 12 | . 1 . 2 . 2 . . . 1 . 1 . . . . . . . . . . . 1 1 3 . . Processor 12 | . . . 2 . . . . . . . . . . . . . 1 . 2 . . 2 . 1 3 1 . Hackware 21 | . . . . . . . . . . 1 2 2 4 . . . 1 2 . . 1 1 2 . 2 3 . Protection 13 | . 1 . . . . . . . 1 . 3 1 . . . 1 1 3 2 . . . . . . . . Artifact . | . . . . . . . . . . . . . . . . . . . . . . . . . . . . Weapon 153 | . 1 . 3 2 . . . 13 . 15 8 7 13 . . 4 17 15 10 4 . 9 5 1 6 19 1 Energy Gun 27 | . . . 2 2 . . . 3 . . . 2 4 . . 2 6 . . 1 . 1 . . 1 3 . Energy Cannon 18 | . . . . . . . . 3 . 6 1 1 1 . . . 1 1 . . . . 2 . . 2 . Ballistic Gun 47 | . 1 . . . . . . 3 . 6 3 2 3 . . . 3 8 3 2 . 1 2 . 1 9 . Ballistic Cannon 24 | . . . . . . . . . . 1 2 1 1 . . . 4 2 2 1 . 5 1 . 3 1 . Launcher 14 | . . . . . . . . 4 . 2 . . 2 . . . . 3 3 . . . . . . . . Special Weapon 13 | . . . 1 . . . . . . . 2 1 2 . . 2 3 . . . . . . . . 2 . Impact Weapon . | . . . . . . . . . . . . . . . . . . . . . . . . . . . . Slashing Weapon 10 | . . . . . . . . . . . . . . . . . . 1 2 . . 2 . 1 1 2 1 Piercing Weapon . | . . . . . . . . . . . . . . . . . . . . . . . . . . . . Special Melee Weapon . | . . . . . . . . . . . . . . . . . . . . . . . . . . . . Unidentified Prototypes 12 | . . . . . . . . 3 . . . . 2 . . . 1 . 3 . . . . . 2 . 1 Parts Lost 107 | . . . . 4 . . 1 6 . 6 . 2 . . . . 16 7 11 4 5 4 6 7 2 25 1 Power 13 | . . . . 1 . . . . . 1 . . . . . . 2 . 1 1 1 1 3 . . 2 . Propulsion 25 | . . . . 1 . . . 2 . 1 . . . . . . 4 3 . . 2 1 1 1 1 8 . Utility 26 | . . . . . . . . . . . . 1 . . . . 4 2 5 . . . 1 3 1 8 1 Weapon 42 | . . . . 2 . . 1 4 . 4 . 1 . . . . 6 2 5 3 2 2 1 2 . 7 . Highest Loss Streak 9 | . . . . 2 . . 1 6 . 4 . 1 . . . . 5 2 7 3 4 3 3 5 1 9 1 Average Slot Usage (%) 88 | . 93 100 93 98 96 88 71 87 84 90 97 99 95 100 100 99 93 94 84 84 75 59 82 94 91 67 7 Engine 5 | . 14 14 11 10 11 11 9 9 7 5 . 6 11 13 13 12 6 1 . . . 1 2 5 . . . Core 2 | . . . . . . . . . . 1 7 . . . . . 3 8 6 5 4 . 3 5 2 . . Reactor 1 | . . . . . . . . . . . . . . . . . . . 3 4 4 5 2 . 5 6 . Treads 1 | . . . . . . . . . . . . . . . . . . . 9 11 6 . 1 . 2 2 . Leg 12 | . 28 28 22 20 22 22 18 18 15 14 15 15 13 13 13 12 18 15 1 . . . 4 10 3 3 . Wheel 1 | . . . . . . . . . . . . . . . . . . 1 . . . 14 12 10 6 . . Device 12 | . . . 12 11 7 . . 5 15 15 15 16 21 13 13 12 10 4 16 27 22 9 14 15 18 12 . Storage 6 | . 14 14 13 11 11 11 9 9 7 7 6 7 6 6 6 6 5 5 5 5 4 . 4 4 4 2 . Processor 8 | . . . 5 22 22 22 18 12 7 7 7 7 6 6 6 6 6 11 6 5 4 8 10 14 10 8 . Hackware 6 | . . . . . . . . . . 3 7 7 9 20 20 15 7 16 1 . 4 1 9 10 10 9 2 Protection 2 | . 7 14 6 . . . . . . 2 4 4 . . . 4 6 . 6 . . . . . . . . Energy Gun 4 | . . . 15 21 22 22 17 3 . . . 2 3 13 13 17 11 . . 3 4 1 . . 1 2 . Energy Cannon 3 | . . . . . . . . 12 15 11 5 1 . 6 6 6 . . . . . . 3 10 2 2 . Ballistic Gun 7 | . 28 28 5 . . . . 8 7 11 9 8 9 6 6 . 2 14 10 4 4 . 4 . 3 3 . Ballistic Cannon 4 | . . . . . . . . . . 1 11 15 6 . . . 3 5 5 4 2 9 4 5 9 3 . Launcher 1 | . . . . . . . . 9 7 3 . . . . . . . . 2 5 4 . . . . . . Naked Turns 122 | . . . . . . . . . . . . . . . . . . . . . 9 14 . . . 96 3 Heaviest Build 139 | 9 28 28 39 30 91 91 91 107 111 120 101 75 80 78 78 88 93 85 97 81 81 70 139 139 122 122 4 Greatest Support 160 | 20 20 20 20 20 20 20 20 25 25 25 20 25 30 30 30 48 88 85 160 160 160 48 48 32 70 70 3 Greatest Overweight (x) 26 | . 1 1 1 2 4 4 4 5 4 10 5 3 2 2 2 4 2 20 3 . 26 2 5 4 4 11 1 Average Overweight (x) 1 | . . 1 1 1 2 4 4 4 4 4 3 2 2 2 2 1 . 1 . . 1 . 2 3 1 1 . Largest Inventory Capacity 24 | 6 10 10 10 10 24 24 24 24 24 24 24 12 12 12 12 12 12 12 12 12 12 4 24 24 16 12 4 Average Capacity 14 | 6 6 10 10 10 15 24 24 24 24 24 13 12 12 12 12 12 12 12 12 12 11 4 21 8 11 9 4 Most Carried 24 | 5 10 10 10 10 18 18 19 24 24 24 24 12 12 12 12 12 12 12 12 12 12 4 23 23 12 12 4 Average Carried 13 | 4 4 9 9 9 11 18 18 23 22 23 12 11 11 12 12 11 11 11 11 11 11 3 10 8 11 9 3 Final Capacity 24 | 6 10 10 10 10 24 24 24 24 24 24 12 12 12 12 12 12 12 12 12 12 4 4 24 8 12 4 4 Final Carried 24 | 2 10 10 10 10 18 18 19 24 24 24 12 12 12 12 12 12 12 12 12 12 4 4 23 8 12 4 4 Class Distribution -------------------- 32% | Scavenger-Skirmisher 17% | Scavenger-Mutant 12% | Mutant 6% | Bothacker-Mutant 5% | Scavenger-Gunner 4% | Hauler-Mutant 4% | Commander-Skirmisher 3% | Scavenger-Tank 3% | Bothacker-Gunner 3% | Hauler-Skirmisher Dominant Class ---------------- Mutant | -10/Materials Mutant | -10/Mines Mutant | -9/Materials Scavenger-Mutant | -9/Mines Scavenger-Mutant | -9/Exiles Hauler-Mutant | -8/Mines Hauler-Mutant | -8/Materials Hauler-Skirmisher | -8/Storage Scavenger-Skirmisher | -7/Factory Scavenger-Skirmisher | -7/Garrison Scavenger-Mutant | -7/Factory Scavenger-Skirmisher | -7/Garrison Bothacker-Mutant | -6/Factory Bothacker-Gunner | -6/Lower Caves Bothacker-Gunner | -6/Data Miner Scavenger-Gunner | -5/Proximity Caves Scavenger-Gunner | -5/Factory Scavenger-Skirmisher | -5/Extension Scavenger-Mutant | -5/Cetus Scavenger-Skirmisher | -5/Archives Scavenger-Mutant | -5/Hub_04(d) Mutant | -4/Factory Scavenger-Skirmisher | -4/Upper Caves Scavenger-Mutant | -4/Upper Caves Hacker-Mutant | -3/Research Scavenger-Tank | -3/Garrison Mutant | -3/Research Resources | -11 -10 -10 -9 -9 -9 -8 -8 -8 -7 -7 -7 -7 -6 -6 -6 -5 -5 -5 -5 -5 -5 -4 -4 -4 -3 -3 -3 ----------- Run | Scr Mat Min Mat Min Exi Min Mat Sto Fac Gar Fac Gar Fac Low Dat Pro Fac Ext Cet Arc Hub Fac Upp Upp Res Gar Res Matter Collected 9124 | 200 . 80 166 65 60 . . 356 114 859 323 1015 245 . . 364 858 1413 787 241 61 319 487 73 481 557 . Remotely . | . . . . . . . . . . . . . . . . . . . . . . . . . . . . Salvage Created 10124 | . . 93 171 292 . . . 1285 145 1351 127 832 155 . . 138 1035 1555 941 374 236 319 124 73 390 488 . Parts 460 | . . 5 19 14 . . . 56 6 59 5 35 5 . . 6 61 58 43 10 16 10 4 5 23 20 . Haulers Intercepted 1 | . . . . . . . . 1 . . . . . . . . . . . . . . . . . . . Recyclers Shooed 7 | . . . . . . . . 1 . . . . . . . . 1 2 . . . . . . 3 . . Parts Field Recycled . | . . . . . . . . . . . . . . . . . . . . . . . . . . . . Retrieved Matter . | . . . . . . . . . . . . . . . . . . . . . . . . . . . . Parts Self-Destructed 30 | . . . . . . . . . . . . . . . . 21 . . . . . . 4 5 . . . Prevented . | . . . . . . . . . . . . . . . . . . . . . . . . . . . . Kills | -11 -10 -10 -9 -9 -9 -8 -8 -8 -7 -7 -7 -7 -6 -6 -6 -5 -5 -5 -5 -5 -5 -4 -4 -4 -3 -3 -3 ------- Run | Scr Mat Min Mat Min Exi Min Mat Sto Fac Gar Fac Gar Fac Low Dat Pro Fac Ext Cet Arc Hub Fac Upp Upp Res Gar Res Combat Hostiles Destroyed 179 | . . 2 5 6 . . . 20 1 29 2 20 3 . . 2 18 18 23 4 3 4 2 2 8 7 . Melee 2 | . . . . . . . . . . . . . . . . . . . . . . 2 . . . . . Guns 77 | . . 2 5 5 . . . 5 1 11 . 9 1 . . 2 7 12 7 1 2 1 . . 1 5 . Cannons 72 | . . . . . . . . 6 . 14 2 11 2 . . . 10 6 5 3 . 1 2 2 6 2 . AOE 25 | . . . . 1 . . . 9 . 4 . . . . . . 1 . 9 . 1 . . . . . . Classes Destroyed 13 | . . 1 3 2 . . . 4 . . . 2 . . . 1 . . . . . . . . . . . Worker 10 | . . . . . . . . 1 . . . . . . . . 7 1 . . 1 . . . . . . Builder 7 | . . . . 1 . . . . . . . . . . . . 3 1 . . 2 . . . . . . Hauler 1 | . . . . . . . . 1 . . . . . . . . . . . . . . . . . . . Recycler 11 | . . . . 1 . . . 3 1 . 1 . . . . . . 4 . . . 1 . . . . . Operator 3 | . . . 1 . . . . . 1 . . . . . . . . . . 1 . . . . . . . Watcher 5 | . . . 1 . . . . 2 . . . . . . . . 1 . 1 . . . . . . . . Swarmer 42 | . . . 3 3 . . . 4 . 10 2 3 . . . . . 6 10 . . . . . 1 . . Grunt 75 | . . 2 2 3 . . . 12 . 15 . 10 . . . . 6 7 10 . 2 . 2 . 1 3 . Brawler 3 | . . . . . . . . . . . . . . . . 1 . . 1 . . . . . 1 . . Duelist 1 | . . . . . . . . . . . . 1 . . . . . . . . . . . . . . . Sentry 25 | . . . . . . . . 3 1 5 . 4 2 . . . 1 4 . 4 1 . . . . . . Hunter 14 | . . . . . . . . 1 . . . 1 . . . . 5 1 2 . . 2 . . . 2 . Programmer 20 | . . . . . . . . . . . . 1 1 . . 1 6 . . . . 2 . 2 5 2 . Guerrilla 1 | . . . . . . . . . . . . . . . . . . 1 . . . . . . . . . Best Kill Streak 8 | . . 2 4 3 . . . 8 2 5 2 7 1 . . 1 7 5 7 2 6 1 1 2 3 3 . Combat Bots Only 7 | . . 2 3 3 . . . 7 1 5 2 7 1 . . 1 4 5 7 1 3 1 1 2 3 3 . Max Kills in Single Turn 5 | . . 1 2 1 . . . 2 1 3 1 2 1 . . 1 2 2 5 1 2 1 1 1 1 2 . Gunslinging 1 | . . . 1 . . . . . . 1 . . . . . . . . . . . . . . . . . Exploded 5 | . . . . 1 . . . 2 . 2 . . . . . . 1 . 5 . 1 . . . . . . Melee 1 | . . . . . . . . . . . . . . . . . . . . . . 1 . . . . . Uniques/NPCs Destroyed . | . . . . . . . . . . . . . . . . . . . . . . . . . . . . Combat | -11 -10 -10 -9 -9 -9 -8 -8 -8 -7 -7 -7 -7 -6 -6 -6 -5 -5 -5 -5 -5 -5 -4 -4 -4 -3 -3 -3 -------- Run | Scr Mat Min Mat Min Exi Min Mat Sto Fac Gar Fac Gar Fac Low Dat Pro Fac Ext Cet Arc Hub Fac Upp Upp Res Gar Res Damage Taken 22960 | . . 111 394 253 . . 59 1243 88 1970 334 931 458 . . 168 2873 1602 3433 704 497 1726 1221 463 908 2943 581 Core 3890 | . . 22 81 56 . . . 235 . 170 15 87 42 . . 40 292 271 366 27 37 544 249 43 115 693 505 Absorbed by Shields 1089 | . . . . . . . . . . . . . . . . . . 293 . . . . . . 506 290 . Reduced by Siege Mode 90 | . . . . . . . . . . . . . . . . . . . . 90 . . . . . . . Core Remaining (%) 61 | 100 . 91 . . . 65 . 57 . . . 61 . . . 90 . . . . . . . 27 . . . Volleys Fired 500 | . 3 12 19 14 . . 1 39 9 51 12 45 19 . . 9 62 52 33 18 9 10 15 6 27 35 . Largest 5 | . 2 2 2 2 . . 2 4 3 4 4 4 4 . . 4 4 4 4 3 4 4 3 4 5 5 . Hottest 373 | . 40 40 100 110 . . 110 197 164 232 209 209 215 . . 285 262 198 165 167 210 268 163 251 303 373 . Shots Fired 1419 | . 6 24 34 27 . . 2 93 27 174 21 161 40 . . 21 192 196 87 33 25 33 35 16 92 80 . Gun 758 | . 6 24 30 27 . . 2 41 9 78 8 68 18 . . 12 112 137 42 15 17 6 9 2 31 64 . Cannon 575 | . . . . . . . . 36 18 86 6 91 10 . . 4 74 55 35 15 2 27 26 14 61 15 . Launcher 50 | . . . . . . . . 16 . 10 . . 1 . . . . 4 10 3 6 . . . . . . Special 36 | . . . 4 . . . . . . . 7 2 11 . . 5 6 . . . . . . . . 1 . Kinetic 904 | . 6 24 12 . . . . 17 9 92 12 127 19 . . . 105 183 77 21 11 27 24 8 80 50 . Thermal 268 | . . . 4 7 . . 1 40 18 61 . 21 7 . . 12 43 . . 9 8 6 11 7 . 13 . Explosive . | . . . . . . . . . . . . . . . . . . . . . . . . . . . . Electromagnetic 215 | . . . 18 20 . . 1 36 . 21 2 11 3 . . 4 38 13 10 3 6 . . 1 12 16 . Robot Hit Streak 22 | . 3 11 9 5 . . 1 22 7 10 8 18 12 . . 6 18 15 17 17 8 9 5 3 9 16 . Robot Miss Streak 12 | . 1 2 6 5 . . 2 3 4 5 12 9 4 . . 1 4 4 2 1 3 7 8 2 5 5 . Penetration Max 1 | . . . . . . . . . . 1 . . . . . . 1 1 1 1 . . . . 1 1 . Secondary Targets 6 | . . 1 2 1 . . . . . 2 . . . . . . . . . . . . . . . . . Max Gunslinging Chain 1 | . . 1 1 1 . . . . . 1 . . . . . . . . . . . . . . . . . Shots Hit Robots 918 | . 5 17 21 19 . . 1 62 16 102 15 103 31 . . 12 128 117 56 30 14 28 20 9 52 58 2 Core Hits 488 | . 2 6 12 12 . . . 45 8 71 9 78 13 . . 4 53 63 35 12 12 10 6 4 15 18 . Critical Hits 59 | . . . . . . . . 2 2 3 . 1 . . . . 10 11 7 8 . 4 2 2 3 3 1 Critical Kills 24 | . . . . . . . . 1 1 1 . 1 . . . . 6 6 3 3 . . . 1 1 . . Critical Parts Destroyed 31 | . . . . . . . . 1 1 2 . . . . . . 4 3 4 3 . 4 2 1 2 3 1 Melee Attacks 97 | . . . . . . . . . . . . . . . . . . 2 19 . . 25 . . 10 22 19 Impact . | . . . . . . . . . . . . . . . . . . . . . . . . . . . . Slashing 97 | . . . . . . . . . . . . . . . . . . 2 19 . . 25 . . 10 22 19 Piercing . | . . . . . . . . . . . . . . . . . . . . . . . . . . . . Sneak Attacks 5 | . . . . . . . . . . . . . . . . . . . . . . 2 . . 2 . 1 Combat Hostiles . | . . . . . . . . . . . . . . . . . . . . . . . . . . . . Follow-up Attacks . | . . . . . . . . . . . . . . . . . . . . . . . . . . . . Damage Inflicted 26004 | . 39 103 241 336 . . . 1805 379 2778 186 1627 444 . . 167 4077 3459 2822 823 927 1036 496 266 2061 1775 157 Guns 10851 | . 39 103 241 246 . . . 431 110 796 109 712 277 . . 133 1943 2080 891 306 295 95 85 58 621 1280 . Cannons 8657 | . . . . . . . . 536 269 1121 77 812 167 . . 34 1531 636 716 370 53 320 411 208 1087 309 . Explosions 5066 | . . . . 90 . . . 838 . 861 . 103 . . . . 583 734 1131 147 579 . . . . . . Melee 1401 | . . . . . . . . . . . . . . . . . . . 84 . . 621 . . 353 186 157 Ramming 29 | . . . . . . . . . . . . . . . . . 20 9 . . . . . . . . . Kinetic 13380 | . 39 103 57 . . . . 180 110 988 159 1126 285 . . . 2065 2648 1607 525 197 320 248 189 1411 1123 . Thermal 5800 | . . . . 150 . . . 705 269 810 . 300 104 . . 133 1541 261 448 151 310 95 248 77 . 198 . Explosive 313 | . . . . . . . . . . 313 . . . . . . . . . . . . . . . . . Electromagnetic 5081 | . . . 184 186 . . . 920 . 667 27 201 55 . . 34 451 541 683 147 420 . . . 297 268 . Impact . | . . . . . . . . . . . . . . . . . . . . . . . . . . . . Slashing 1401 | . . . . . . . . . . . . . . . . . . . 84 . . 621 . . 353 186 157 Piercing . | . . . . . . . . . . . . . . . . . . . . . . . . . . . . Highest Corruption 19 | . . . . . . . . 2 . . . . . . . 1 2 4 14 14 14 6 6 9 10 18 19 Average Corruption 7 | . . . . . . . . 1 . . . . . . . 1 1 2 10 14 14 5 6 8 5 14 18 Corruption Purged . | . . . . . . . . . . . . . . . . . . . . . . . . . . . . Effects 302 | . . . . . . . . 17 . . . . . . . 1 6 17 44 31 18 3 34 12 19 73 27 Message Errors 64 | . . . . . . . . 4 . . . . . . . . 1 3 9 7 4 . 7 2 4 18 5 Matter Fused 31 | . . . . . . . . . . . . . . . . . . 1 3 4 2 . 6 3 1 8 3 Heat Flow Errors 31 | . . . . . . . . 3 . . . . . . . . . . 3 4 1 1 5 2 2 8 2 Energy Discharges 24 | . . . . . . . . 2 . . . . . . . . . 3 3 2 . . 6 1 1 5 1 Parts Rejected 4 | . . . . . . . . . . . . . . . . . . . 2 2 . . . . . . . Data Loss (minor) 31 | . . . . . . . . 5 . . . . . . . 1 1 5 3 1 1 1 6 1 1 4 1 Data Loss (major) 9 | . . . . . . . . . . . . . . . . . . . 2 . 1 . . 1 3 2 . Misfires 6 | . . . . . . . . . . . . . . . . . . . 1 1 . . 2 1 . 1 . Alerts 4 | . . . . . . . . . . . . . . . . . . . . 1 . . . . . 2 1 Misdirections 33 | . . . . . . . . . . . . . . . . . . . 5 5 3 . . . 1 9 10 Targeting Errors 58 | . . . . . . . . 3 . . . . . . . . 4 4 12 3 3 1 1 1 6 16 4 Weapon Failures 7 | . . . . . . . . . . . . . . . . . . 1 1 1 3 . 1 . . . . Overload Shots . | . . . . . . . . . . . . . . . . . . . . . . . . . . . . Overflow Damage 533 | . . . . 7 . . . 30 . 61 . 11 . . . . 33 27 37 40 . 119 . . 168 . . Projectiles 125 | . . . . . . . . 12 . . . . . . . . 22 10 . 3 . . . . 78 . . Explosions 199 | . . . . 7 . . . 18 . 61 . 11 . . . . 11 17 37 37 . . . . . . . Melee 209 | . . . . . . . . . . . . . . . . . . . . . . 119 . . 90 . . Knockbacks 54 | . . . . . . . . . . 3 2 5 . . . . 12 4 8 . . 3 1 2 11 3 . Impact . | . . . . . . . . . . . . . . . . . . . . . . . . . . . . Kinetic 49 | . . . . . . . . . . 2 2 4 . . . . 11 4 8 . . 3 1 2 9 3 . Secondary 5 | . . . . . . . . . . 1 . 1 . . . . 1 . . . . . . . 2 . . Self-Inflicted Damage 942 | . . . . 34 . . . 156 . 154 . 108 14 . . . 56 94 129 42 31 . . . . . 124 Shots 28 | . . . . 1 . . . 6 . 4 . 1 1 . . . 1 3 5 3 2 . . . . . 1 Rammed 1 | . . . . . . . . . . . . . . . . . 1 . . . . . . . . . . Targets Rammed 3 | . . . . . . . . . . . . . . . . . 2 1 . . . . . . . . . Kicked 2 | . . . . . . . . . . . . . . . . . 1 1 . . . . . . . . . Crushed . | . . . . . . . . . . . . . . . . . . . . . . . . . . . . Highest Temperature 652 | . 12 40 36 213 . . 30 390 96 281 48 148 126 . . 390 502 361 539 66 203 652 150 188 198 345 140 Average Temperature 113 | . 7 23 22 70 . . 16 104 55 64 32 58 44 . . 169 167 66 254 44 76 365 64 67 109 82 62 Received Heat Transfer 3863 | . . 60 138 51 . . 18 459 39 381 27 219 162 . . 36 183 261 945 72 189 . 288 . 12 233 90 Effects 40 | . . . . . . . . . . 1 . . . . . 4 8 2 7 . 3 15 . . . . . Shutdowns 9 | . . . . . . . . . . . . . . . . 1 2 . 2 . . 4 . . . . . Energy Bleed 5 | . . . . . . . . . . . . . . . . . 2 1 1 . . 1 . . . . . Interference 14 | . . . . . . . . . . 1 . . . . . 3 2 1 . . 3 4 . . . . . Matter Decay 2 | . . . . . . . . . . . . . . . . . . . 2 . . . . . . . . Short Circuit 3 | . . . . . . . . . . . . . . . . . . . . . . 3 . . . . . Damage (major) 3 | . . . . . . . . . . . . . . . . . 2 . . . . 1 . . . . . Damage (core) 4 | . . . . . . . . . . . . . . . . . . . 2 . . 2 . . . . . Siege Activations 4 | . . . . . . . . . . . . . . . . . . . . 4 . . . . . . . Total Turns 80 | . . . . . . . . . . . . . . . . . . . . 80 . . . . . . . Longest Duration 41 | . . . . . . . . . . . . . . . . . . . . 41 . . . . . . . Robots Corrupted 5 | . . . . 1 . . . . . . . . . . . . . . 2 1 . . . . 1 . . Combat Hostiles 3 | . . . . . . . . . . . . . . . . . . . 2 . . . . . 1 . . Parts Fried 17 | . . . . . . . . 4 . 2 . . . . . . 1 2 1 3 . . . . 2 2 . Impact Corruptions 1 | . . . . . . . . . . . . . . . . . . . . . . . . . 1 . . Robots Melted . | . . . . . . . . . . . . . . . . . . . . . . . . . . . . Combat Hostiles . | . . . . . . . . . . . . . . . . . . . . . . . . . . . . Parts Melted 11 | . . . . 1 . . . 1 2 1 . . . . . . 5 1 . . . . . . . . . Heat Transferred 8367 | . . . . 298 . . . 1249 481 1371 . 581 161 . . 185 1523 350 400 350 450 148 296 74 . 450 . Parts Sabotaged 4 | . . . . . . . . . . . . . . . . 4 . . . . . . . . . . . Parts Stolen . | . . . . . . . . . . . . . . . . . . . . . . . . . . . . Parts Stripped . | . . . . . . . . . . . . . . . . . . . . . . . . . . . . Power Chain Reactions 20 | . . . . 1 . . . 6 . 3 . 1 . . . . 2 1 4 . 2 . . . . . . Missiles Intercepted . | . . . . . . . . . . . . . . . . . . . . . . . . . . . . Alert | -11 -10 -10 -9 -9 -9 -8 -8 -8 -7 -7 -7 -7 -6 -6 -6 -5 -5 -5 -5 -5 -5 -4 -4 -4 -3 -3 -3 ------- Run | Scr Mat Min Mat Min Exi Min Mat Sto Fac Gar Fac Gar Fac Low Dat Pro Fac Ext Cet Arc Hub Fac Upp Upp Res Gar Res Peak Influence 881 | . . 65 130 160 . . 15 348 117 831 441 857 525 . . . 351 881 860 410 188 201 . . 121 300 257 Initial 492 | . . . . 25 . . . 4 54 29 436 66 449 . . . . 128 492 284 73 86 . . 20 90 99 Average 282 | . . 37 56 109 . . 8 136 48 456 350 632 284 . . . 170 342 635 299 119 103 . . 58 194 143 Maximum Alert Level 3 | . . . . . . . . 1 . 3 2 3 2 . . . 1 3 3 2 . 1 . . . 1 1 Low Security (%) 53 | 100 100 100 100 100 . 100 100 87 100 24 18 5 45 . . . 58 26 . . 100 99 . . 100 67 96 Level 1 16 | . . . . . . . . 12 . 13 16 15 19 . . . 41 29 . 86 . . . . . 32 3 Level 2 20 | . . . . . . . . . . 45 65 27 34 . . . . 39 74 13 . . . . . . . Level 3 9 | . . . . . . . . . . 16 . 50 . . . . . 3 25 . . . . . . . . Level 4 . | . . . . . . . . . . . . . . . . . . . . . . . . . . . . Level 5 . | . . . . . . . . . . . . . . . . . . . . . . . . . . . . High Security . | . . . . . . . . . . . . . . . . . . . . . . . . . . . . Max Security . | . . . . . . . . . . . . . . . . . . . . . . . . . . . . Squads Dispatched 44 | . 1 . 3 . . . . 5 3 . 5 . 4 . . 1 8 3 3 . 2 2 . . 3 . 1 Investigation 10 | . . . . . . . . 1 . . 1 . 2 . . . . 1 3 . 1 . . . . . 1 Extermination 7 | . . . . . . . . . . . 1 . 1 . . . 2 . . . . 1 . . 2 . . Reinforcement 19 | . 1 . 3 . . . . 4 1 . 1 . 1 . . . 3 2 . . 1 1 . . 1 . . Assault 1 | . . . . . . . . . . . . . . . . 1 . . . . . . . . . . . Garrison 7 | . . . . . . . . . 2 . 2 . . . . . 3 . . . . . . . . . . Intercept . | . . . . . . . . . . . . . . . . . . . . . . . . . . . . Construction Impeded 4 | . . . . . . . . 1 . . . . . . . . 1 1 . . 1 . . . . . . Haulers Reinforced 1 | . . . . . . . . . . . . . . . . . . . . . . . . . 1 . . Stealth | -11 -10 -10 -9 -9 -9 -8 -8 -8 -7 -7 -7 -7 -6 -6 -6 -5 -5 -5 -5 -5 -5 -4 -4 -4 -3 -3 -3 --------- Run | Scr Mat Min Mat Min Exi Min Mat Sto Fac Gar Fac Gar Fac Low Dat Pro Fac Ext Cet Arc Hub Fac Upp Upp Res Gar Res Distress Signals 11 | . . . . . . . . 2 1 . . . . . . . 3 3 . . . . . . . . 2 Communications Jammed . | . . . . . . . . . . . . . . . . . . . . . . . . . . . . Distress Signals . | . . . . . . . . . . . . . . . . . . . . . . . . . . . . Times Spotted 353 | . 2 2 22 8 . . 2 31 5 31 11 25 11 . . 14 33 47 30 7 6 7 13 6 10 17 13 Peak Tracking Total 10 | . 1 2 10 3 . . 1 7 2 5 4 4 3 . . 6 5 7 8 1 4 4 4 4 3 7 8 Tactical Retreats 35 | . . . . 2 . . . 4 . 4 . 1 1 . . 1 2 7 . . 1 . 5 . . 5 2 Traps | -11 -10 -10 -9 -9 -9 -8 -8 -8 -7 -7 -7 -7 -6 -6 -6 -5 -5 -5 -5 -5 -5 -4 -4 -4 -3 -3 -3 ------- Run | Scr Mat Min Mat Min Exi Min Mat Sto Fac Gar Fac Gar Fac Low Dat Pro Fac Ext Cet Arc Hub Fac Upp Upp Res Gar Res Traps Triggered 26 | . 1 . . . . . . 1 1 1 . 7 4 . . . . 2 . . . . . . 1 8 . Indirectly 1 | . . . . . . . . . . . . . 1 . . . . . . . . . . . . . . Trap Hack Attempts . | . . . . . . . . . . . . . . . . . . . . . . . . . . . . Triggered . | . . . . . . . . . . . . . . . . . . . . . . . . . . . . Disarmed . | . . . . . . . . . . . . . . . . . . . . . . . . . . . . Reprogrammed . | . . . . . . . . . . . . . . . . . . . . . . . . . . . . Reused . | . . . . . . . . . . . . . . . . . . . . . . . . . . . . Traps Reconfigurated 8 | . . . . . . . . . . . . . 4 . . . . . . . . . . . 4 . . Traps Extracted . | . . . . . . . . . . . . . . . . . . . . . . . . . . . . Installed . | . . . . . . . . . . . . . . . . . . . . . . . . . . . . Triggered 1 | . . . . . . . . . . . . . . . . . . 1 . . . . . . . . . Machines | -11 -10 -10 -9 -9 -9 -8 -8 -8 -7 -7 -7 -7 -6 -6 -6 -5 -5 -5 -5 -5 -5 -4 -4 -4 -3 -3 -3 ---------- Run | Scr Mat Min Mat Min Exi Min Mat Sto Fac Gar Fac Gar Fac Low Dat Pro Fac Ext Cet Arc Hub Fac Upp Upp Res Gar Res Machines Disabled 33 | . . . . . . . . 1 . 3 . 7 . . . . 4 5 7 2 . . . . 2 1 1 Max in Single Turn 3 | . . . . . . . . 1 . 2 . 2 . . . . 1 1 3 1 . . . . 1 1 1 Garrison Access 1 | . . . . . . . . . . . . . . . . . . . . . . . . . 1 . . Garrison Relay 6 | . . . . . . . . . . 1 . 4 . . . . . . . . . . . . . 1 . Phase Generator 2 | . . . . . . . . . . 1 . 1 . . . . . . . . . . . . . . . Machines Sabotaged . | . . . . . . . . . . . . . . . . . . . . . . . . . . . . Garrisons Compromised . | . . . . . . . . . . . . . . . . . . . . . . . . . . . . Overloaded Fab Kills . | . . . . . . . . . . . . . . . . . . . . . . . . . . . . Fab Network Shutdowns . | . . . . . . . . . . . . . . . . . . . . . . . . . . . . Hacking | -11 -10 -10 -9 -9 -9 -8 -8 -8 -7 -7 -7 -7 -6 -6 -6 -5 -5 -5 -5 -5 -5 -4 -4 -4 -3 -3 -3 --------- Run | Scr Mat Min Mat Min Exi Min Mat Sto Fac Gar Fac Gar Fac Low Dat Pro Fac Ext Cet Arc Hub Fac Upp Upp Res Gar Res Machines Accessed 44 | . 1 . 3 . 2 . 1 3 3 . 2 . 4 . 4 . 2 3 3 . 1 3 . . 6 . 3 Terminals 29 | . 1 . 3 . . . 1 3 2 . . . 2 . . . 2 3 3 . 1 3 . . 2 . 3 Fabricators 2 | . . . . . . . . . . . 1 . 1 . . . . . . . . . . . . . . Repair Stations . | . . . . . . . . . . . . . . . . . . . . . . . . . . . . Recycling Units 2 | . . . . . . . . . . . . . . . . . . . . . . . . . 2 . . Scanalyzers 1 | . . . . . . . . . . . . . 1 . . . . . . . . . . . . . . Garrison Access 4 | . . . . . . . . . 1 . 1 . . . . . . . . . . . . . 2 . . Total Hacks 145 | . 2 . 9 . 5 . 3 7 7 . 3 . 14 . 26 . 8 12 10 . 4 15 . . 13 . 7 Successful 87 | . . . 4 . 5 . 2 3 3 . 1 . 9 . 26 . 2 9 1 . 2 9 . . 8 . 3 Failed 58 | . 2 . 5 . . . 1 4 4 . 2 . 5 . . . 6 3 9 . 2 6 . . 5 . 4 Catastrophic 15 | . . . . . . . . . 2 . 1 . 2 . . . 1 1 1 . 1 . . . 3 . 3 Database Lockouts . | . . . . . . . . . . . . . . . . . . . . . . . . . . . . Manual 70 | . 2 . 8 . 1 . 3 7 3 . . . . . . . 6 7 2 2 4 15 . . 4 . 6 Terminals 91 | . 2 . 9 . . . 3 7 5 . . . 4 . . . 8 12 10 . 4 15 . . 5 . 7 Fabricators 4 | . . . . . . . . . . . 2 . 2 . . . . . . . . . . . . . . Repair Stations . | . . . . . . . . . . . . . . . . . . . . . . . . . . . . Recycling Units 5 | . . . . . . . . . . . . . . . . . . . . . . . . . 5 . . Scanalyzers 8 | . . . . . . . . . . . . . 8 . . . . . . . . . . . . . . Garrison Access 6 | . . . . . . . . . 2 . 1 . . . . . . . . . . . . . 3 . . Terminal Hacks 56 | . . . 3 . 5 . 2 2 2 . . . 1 . 26 . 1 6 1 . 1 4 . . 1 . 1 Record 18 | . . . . . 4 . . . . . . . . . 11 . . . 1 . . . . . 1 . 1 Part Schematic 6 | . . . . . . . . . . . . . . . 6 . . . . . . . . . . . . Robot Schematic 7 | . . . . . . . . . 1 . . . . . 6 . . . . . . . . . . . . Prototype ID Bank 6 | . . . 1 . . . 1 . . . . . . . 3 . . . . . . 1 . . . . . Open Door 1 | . . . . . . . . 1 . . . . . . . . . . . . . . . . . . . Level Access Points 3 | . . . . . . . . . . . . . . . . . . 1 . . 1 1 . . . . . Branch Access Points 4 | . . . 1 . . . . . . . . . 1 . . . . 1 . . . 1 . . . . . Machine Index 1 | . . . . . . . . . . . . . . . . . 1 . . . . . . . . . . Unreport Threat 7 | . . . 1 . . . 1 1 1 . . . . . . . . 2 . . . 1 . . . . . Extermination Status 1 | . . . . . . . . . . . . . . . . . . 1 . . . . . . . . . Hauler Manifests 1 | . . . . . . . . . . . . . . . . . . 1 . . . . . . . . . EX-Prototype ID Bank 1 | . . . . . 1 . . . . . . . . . . . . . . . . . . . . . . Fabricator Hacks 1 | . . . . . . . . . . . . . 1 . . . . . . . . . . . . . . Load Schematic 1 | . . . . . . . . . . . . . 1 . . . . . . . . . . . . . . Repair Station Hacks . | . . . . . . . . . . . . . . . . . . . . . . . . . . . . Recycling Unit Hacks 3 | . . . . . . . . . . . . . . . . . . . . . . . . . 3 . . Process 2 | . . . . . . . . . . . . . . . . . . . . . . . . . 2 . . Retrieve Matter 1 | . . . . . . . . . . . . . . . . . . . . . . . . . 1 . . Scanalyzer 7 | . . . . . . . . . . . . . 7 . . . . . . . . . . . . . . Insert Component 2 | . . . . . . . . . . . . . 2 . . . . . . . . . . . . . . Analyze 5 | . . . . . . . . . . . . . 5 . . . . . . . . . . . . . . Garrison Access Hacks 5 | . . . . . . . . . 1 . 1 . . . . . . . . . . . . . 3 . . Unlock Access 3 | . . . . . . . . . 1 . 1 . . . . . . . . . . . . . 1 . . Seal Access 1 | . . . . . . . . . . . . . . . . . . . . . . . . . 1 . . Coupler Status 1 | . . . . . . . . . . . . . . . . . . . . . . . . . 1 . . Unauthorized Hacks 15 | . . . 1 . . . . 1 . . . . . . . . 1 3 . . 1 5 . . 1 . 2 Terminals 15 | . . . 1 . . . . 1 . . . . . . . . 1 3 . . 1 5 . . 1 . 2 Track 2 | . . . . . . . . . . . . . . . . . . 1 . . . 1 . . . . . Assimilate 1 | . . . . . . . . . . . . . . . . . . . . . . 1 . . . . . Botnet 9 | . . . 1 . . . . 1 . . . . . . . . 1 1 . . 1 2 . . 1 . 1 Operators 3 | . . . . . . . . . . . . . . . . . . 1 . . . 1 . . . . 1 Fabricators . | . . . . . . . . . . . . . . . . . . . . . . . . . . . . Repair Stations . | . . . . . . . . . . . . . . . . . . . . . . . . . . . . Recycling Units . | . . . . . . . . . . . . . . . . . . . . . . . . . . . . Scanalyzers . | . . . . . . . . . . . . . . . . . . . . . . . . . . . . Garrison Access . | . . . . . . . . . . . . . . . . . . . . . . . . . . . . Data Cores Recovered 1 | . . . . . . . . . 1 . . . . . . . . . . . . . . . . . . Used . | . . . . . . . . . . . . . . . . . . . . . . . . . . . . Hacking Detections 34 | . 1 . 3 . . . 1 2 3 . 1 . 4 . . . 3 3 3 . 1 3 . . 3 . 3 Full Trace Events 9 | . . . . . . . . . . . 1 . 2 . . . . 1 3 . 1 . . . . . 1 Feedback Events . | . . . . . . . . . . . . . . . . . . . . . . . . . . . . Feedback Blocked . | . . . . . . . . . . . . . . . . . . . . . . . . . . . . Robot Schematics Acquired 7 | . . . . . . . . . 1 . . . . . 6 . . . . . . . . . . . . Robots Built . | . . . . . . . . . . . . . . . . . . . . . . . . . . . . Matter . | . . . . . . . . . . . . . . . . . . . . . . . . . . . . Time . | . . . . . . . . . . . . . . . . . . . . . . . . . . . . Total Robot Build Rating . | . . . . . . . . . . . . . . . . . . . . . . . . . . . . Part Schematics Acquired 8 | . . . . . . . . . . . . . 2 . 6 . . . . . . . . . . . . Parts Built . | . . . . . . . . . . . . . . . . . . . . . . . . . . . . Matter . | . . . . . . . . . . . . . . . . . . . . . . . . . . . . Time . | . . . . . . . . . . . . . . . . . . . . . . . . . . . . Total Part Build Rating . | . . . . . . . . . . . . . . . . . . . . . . . . . . . . Parts Repaired . | . . . . . . . . . . . . . . . . . . . . . . . . . . . . Time . | . . . . . . . . . . . . . . . . . . . . . . . . . . . . Parts Recycled . | . . . . . . . . . . . . . . . . . . . . . . . . . . . . Recycled Matter 113 | . . . . . . . . . . . . . . . . . . . . . . . . . 113 . . Retrieved Matter 103 | . . . . . . . . . . . . . . . . . . . . . . . . . 103 . . Retrieved Components . | . . . . . . . . . . . . . . . . . . . . . . . . . . . . Parts Scanalyzed 2 | . . . . . . . . . . . . . 2 . . . . . . . . . . . . . . Part Schematics Acquired 2 | . . . . . . . . . . . . . 2 . . . . . . . . . . . . . . Parts Damaged . | . . . . . . . . . . . . . . . . . . . . . . . . . . . . Bothacking | -11 -10 -10 -9 -9 -9 -8 -8 -8 -7 -7 -7 -7 -6 -6 -6 -5 -5 -5 -5 -5 -5 -4 -4 -4 -3 -3 -3 ------------ Run | Scr Mat Min Mat Min Exi Min Mat Sto Fac Gar Fac Gar Fac Low Dat Pro Fac Ext Cet Arc Hub Fac Upp Upp Res Gar Res Used RIF Installer 3 | . . . . . . . . . . 1 . 1 . . . . . . . . . . . . . 1 . Zone Cloak 1 | . . . . . . . . . . . . 1 . . . . . . . . . . . . . . . Autooverride 1 | . . . . . . . . . . . . . . . . . . . . . . . . . . 1 . Robots Hacked 20 | . . . . . . . . . . . 4 2 5 . . 4 4 . . . . . . . . 1 . Non-combat 7 | . . . . . . . . . . . 1 . 2 . . . 4 . . . . . . . . . . Combat 13 | . . . . . . . . . . . 3 2 3 . . 4 . . . . . . . . . 1 . Robot Hacks Applied 23 | . . . . . . . . . . . 5 2 6 . . 4 5 . . . . . . . . 1 . parse_system 3 | . . . . . . . . . . . . . . . . 2 . . . . . . . . . 1 . ignore_repairs 1 | . . . . . . . . . . . . . . . . . 1 . . . . . . . . . . purge_threat 3 | . . . . . . . . . . . 2 . 1 . . . . . . . . . . . . . . map_route 1 | . . . . . . . . . . . . . . . . . 1 . . . . . . . . . . amplify_resonance 1 | . . . . . . . . . . . . . . . . 1 . . . . . . . . . . . go_dormant 1 | . . . . . . . . . . . . . 1 . . . . . . . . . . . . . . formatsys_high 13 | . . . . . . . . . . . 3 2 4 . . 1 3 . . . . . . . . . . Relay Couplers Released 22 | . . . . . . . . . . 5 . 14 . . . . . . . . . . . . . 3 . Machine Destruction 22 | . . . . . . . . . . 5 . 14 . . . . . . . . . . . . . 3 . Attached 13 | . . . . . . . . . . 1 2 2 4 . . . . 1 . . . . . . . 3 . Robots Rewired 18 | . . . . . . . . . . . . . . . . . 1 17 . . . . . . . . . Allies Hacked 1 | . . . . . . . . . . . . . . . . . 1 . . . . . . . . . . Hacks Repelled . | . . . . . . . . . . . . . . . . . . . . . . . . . . . . Allies | -11 -10 -10 -9 -9 -9 -8 -8 -8 -7 -7 -7 -7 -6 -6 -6 -5 -5 -5 -5 -5 -5 -4 -4 -4 -3 -3 -3 -------- Run | Scr Mat Min Mat Min Exi Min Mat Sto Fac Gar Fac Gar Fac Low Dat Pro Fac Ext Cet Arc Hub Fac Upp Upp Res Gar Res Total Allies 51 | . . . . . . . . 10 . . 3 2 4 . . 2 4 26 . . . . . . . . . Largest Group 15 | . . . . . . . . 10 6 3 3 3 4 4 4 5 5 15 13 . . . . . . . . Highest-Rated Group 558 | . . . . . . . . 173 96 48 53 81 113 113 113 207 116 558 378 . . . . . . . . Highest-Rated Ally 156 | . . . . . . . . 29 16 16 21 30 30 29 29 94 36 156 37 . . . . . . . . Total Orders 35 | . . . . . . . . 2 . 2 4 3 7 . . 5 8 3 1 . . . . . . . . STAY 20 | . . . . . . . . 1 . 1 2 2 4 . . 3 5 1 1 . . . . . . . . FOLLOW 15 | . . . . . . . . 1 . 1 2 1 3 . . 2 3 2 . . . . . . . . . Ally Attacks 361 | . . . . . . . . 41 30 1 29 . 10 . . 40 3 144 63 . . . . . . . . Total Damage 7080 | . . . . . . . . 501 396 16 418 . 165 . . 851 115 3550 1068 . . . . . . . . Kills 57 | . . . . . . . . 6 4 . 5 . 1 . . 8 1 25 7 . . . . . . . . Allies Corrupted 1 | . . . . . . . . . . . . . . . . . . 1 . . . . . . . . . Allies Melted . | . . . . . . . . . . . . . . . . . . . . . . . . . . . . Intel | -11 -10 -10 -9 -9 -9 -8 -8 -8 -7 -7 -7 -7 -6 -6 -6 -5 -5 -5 -5 -5 -5 -4 -4 -4 -3 -3 -3 ------- Run | Scr Mat Min Mat Min Exi Min Mat Sto Fac Gar Fac Gar Fac Low Dat Pro Fac Ext Cet Arc Hub Fac Upp Upp Res Gar Res Robot Analysis Total . | . . . . . . . . . . . . . . . . . . . . . . . . . . . . Derelict Logs Recovered 7 | . . 1 . 1 . . . . . . . . . . . 3 . . . . . . 2 . . . . Drone Launches . | . . . . . . . . . . . . . . . . . . . . . . . . . . . . Drone Recoveries . | . . . . . . . . . . . . . . . . . . . . . . . . . . . . Exploration | -11 -10 -10 -9 -9 -9 -8 -8 -8 -7 -7 -7 -7 -6 -6 -6 -5 -5 -5 -5 -5 -5 -4 -4 -4 -3 -3 -3 ------------- Run | Scr Mat Min Mat Min Exi Min Mat Sto Fac Gar Fac Gar Fac Low Dat Pro Fac Ext Cet Arc Hub Fac Upp Upp Res Gar Res Turns Passed 22291 | 2 156 663 583 475 529 500 151 1665 591 2362 611 2320 1153 15 150 833 1610 1452 939 601 162 605 1262 268 1067 1192 374 Spaces Moved 11019 | 1 81 414 295 268 283 207 56 566 218 774 246 1118 576 9 84 493 877 698 448 283 67 444 980 117 472 608 336 Core 658 | . . . . . . . . . . . . . . . . . . 5 . . 16 67 . . . 234 336 Treads 1107 | . . . . . . . . . . . . . . . . . . . 403 283 51 . . . 269 101 . Legs 7528 | 1 81 414 295 268 283 207 56 566 218 774 246 1118 576 9 84 493 877 544 45 . . . 11 106 74 182 . Wheels 1635 | . . . . . . . . . . . . . . . . . . 149 . . . 377 969 11 129 . . Hover 91 | . . . . . . . . . . . . . . . . . . . . . . . . . . 91 . Flight . | . . . . . . . . . . . . . . . . . . . . . . . . . . . . Fastest Speed 50 | 120 120 150 150 150 120 240 240 240 240 210 150 180 180 180 180 150 120 120 120 160 50 50 93 105 115 50 50 Average Speed 167 | 120 128 150 150 151 180 240 240 252 240 242 212 185 180 180 180 158 139 147 158 160 191 93 118 201 173 135 95 Slowest Speed 1350 | 120 150 150 150 180 240 240 240 270 240 420 270 210 180 180 180 240 180 1050 210 160 1350 115 270 210 240 600 100 Overloaded Moves . | . . . . . . . . . . . . . . . . . . . . . . . . . . . . Propulsion Burnouts . | . . . . . . . . . . . . . . . . . . . . . . . . . . . . Robots Hopped 5 | . . . . . . . . . . . . . 5 . . . . . . . . . . . . . . Cave-ins Triggered 1 | . . . . . . . . . . . . . . . . . . . . . . . . . . . 1 Exploration Rate (%) 41 | 2 21 86 31 61 62 48 8 60 4 70 2 97 15 4 69 63 20 83 65 96 8 12 92 16 10 44 10 Regions Visited 27 Branch Regions 14 Pre-discovered Areas 4 | . . 1 . . 1 . . . . . . . . . 1 . . . . . . . 1 . . . . Known Exits Taken 15 | . . . 1 1 1 1 1 1 1 . 1 . 1 . . 1 . 1 . . 1 1 . 1 1 . . Unknown Exits Taken 9 | 1 1 1 . . . . . . . . . . . 1 1 . 1 . 1 1 . . 1 . . . . Scrap Searched 6 | . . 1 . 1 . . . . . . . . . . . . . . . . . . 4 . . . . Spaces Dug 42 | . . . 4 . . . . . . . . . . . . . . 2 1 . . 10 . . 5 5 15 Terrain Destroyed 506 | . . . 4 6 . . . 14 1 99 . 78 2 . . 4 92 38 34 3 14 28 9 6 35 15 24 Melee 37 | . . . . . . . . . . . . . . . . . . 2 1 . . 9 . . 5 5 15 Projectile 201 | . . . 4 . . . . . 1 10 . . 2 . . 4 54 36 9 3 4 19 9 6 30 10 . AOE 268 | . . . . 6 . . . 14 . 89 . 78 . . . . 38 . 24 . 10 . . . . . 9 Terrain Rammed . | . . . . . . . . . . . . . . . . . . . . . . . . . . . . Walls Destroyed . | . . . . . . . . . . . . . . . . . . . . . . . . . . . . Machines Disabled . | . . . . . . . . . . . . . . . . . . . . . . . . . . . . Actions | -11 -10 -10 -9 -9 -9 -8 -8 -8 -7 -7 -7 -7 -6 -6 -6 -5 -5 -5 -5 -5 -5 -4 -4 -4 -3 -3 -3 --------- Run | Scr Mat Min Mat Min Exi Min Mat Sto Fac Gar Fac Gar Fac Low Dat Pro Fac Ext Cet Arc Hub Fac Upp Upp Res Gar Res Total 13771 | 4 128 439 399 312 302 211 72 743 269 1157 324 1271 666 8 83 534 1137 1002 580 402 85 566 1043 137 652 882 363 Wait 1098 | . 31 6 58 16 . 5 15 81 . 230 15 20 16 . . 11 127 69 29 83 1 58 9 . 79 139 . Move 10983 | . 80 413 294 267 282 206 55 565 217 773 246 1116 566 8 83 492 876 697 447 282 66 443 979 116 472 606 336 Hop 4 | . . . . . . . . . . . . . 4 . . . . . . . . . . . . . . Pick Up 194 | . 9 2 5 4 14 . 1 17 25 12 14 8 9 . . 2 9 3 5 5 2 3 18 6 12 7 2 Fast Attach 170 | . 2 . 4 1 1 . . 7 3 7 6 4 8 . . 4 16 20 14 4 2 17 11 4 14 20 1 Attach 41 | . . . 1 3 . . . 5 1 1 3 2 3 . . 1 4 1 5 3 1 1 4 . . 2 . Detach 16 | . . . . . 1 . . . . . 3 . 1 . . . . 1 3 . . . 1 . 4 2 . Swap 209 | . 1 2 7 3 1 . . 11 2 35 11 19 15 . . 8 15 28 11 3 . 4 5 1 10 17 . Drop 277 | 4 2 4 11 4 3 . . 18 7 43 14 22 17 . . 6 19 30 14 4 4 5 1 4 18 19 4 Fire 500 | . 3 12 19 14 . . 1 39 9 51 12 45 19 . . 9 62 52 33 18 9 10 15 6 27 35 . Melee 97 | . . . . . . . . . . . . . . . . . . 2 19 . . 25 . . 10 22 19 Ram 1 | . . . . . . . . . . . . . . . . . . . . . . . . . . . 1 Kick 3 | . . . . . . . . . . . . . . . . . 2 1 . . . . . . . . . Crush . | . . . . . . . . . . . . . . . . . . . . . . . . . . . . Escape Stasis 66 | . . . . . . . . . 5 5 . 35 . . . . . 8 . . . . . . . 13 . Rewire 112 | . . . . . . . . . . . . . 8 . . 1 7 90 . . . . . . 6 . . Trap . | . . . . . . . . . . . . . . . . . . . . . . . . . . . . Miscellaneous . | . . . . . . . . . . . . . . . . . . . . . . . . . . . . Route ------- -11/Scrapyard -10/Materials -10/Mines (discovered 2 exits: *Mat x2) -9/Materials (discovered 3 exits: *Mat / *Min x2) -9/Mines -9/Exiles -8/Mines -8/Materials (discovered 2 exits: Fac / *Sto) -8/Storage -7/Factory -7/Garrison (discovered 2 exits: *Fac x2) -7/Factory -7/Garrison (discovered 3 exits: *Fac x3) -6/Factory (discovered 2 exits: *Low x2) -6/Lower Caves -6/Data Miner -5/Proximity Caves -5/Factory (discovered 3 exits: Fac / Upp / *Ext) -5/Extension (discovered 3 exits: *Fac x2 / *Cet) -5/Cetus -5/Archives (discovered 3 exits: *Fac / *Hub x2) -5/Hub_04(d) (discovered 4 exits: *Fac x4) -4/Factory (discovered 7 exits: Res x4 / *Upp x2 / Arm) -4/Upper Caves -4/Upper Caves -3/Research -3/Garrison -3/Research History --------- Turn | Location | Event 3 | -11/Scrapyard | Discovered new exit (range 0) 3 | -11/Scrapyard | Entered Materials 111 | -10/Materials | Discovered new exit (range 12) 159 | -10/Materials | Entered Mines 162 | -10/Mines | Met a Derelict bent on vengeance 303 | -10/Mines | Build established: Mutant 459 | -10/Mines | Discovered new exit (range 7) 563 | -10/Mines | Learned location of Zion (-7) 680 | -10/Mines | Discovered new exit (range 11) 822 | -10/Mines | Entered Materials 822 | -9/Materials | Evolved 2 slots: Utility x2 1206 | -9/Materials | Discovered new exit (range 16) 1226 | -9/Materials | Identified exit to Mines 1405 | -9/Materials | Entered Mines 1805 | -9/Mines | Assembled infested the area 1810 | -9/Mines | Assisted by a Guerilla fighting off Assembled 1817 | -9/Mines | Learned 8 Materials zone layouts 1874 | -9/Mines | Deemed a non-threat by the Exiles lab entrance 1874 | -9/Mines | Discovered new exit (range 5) 1879 | -9/Mines | Identified exit to Exiles 1880 | -9/Mines | Entered Exiles 1910 | -9/Exiles | Build established: Scavenger-Mutant 1915 | -9/Exiles | Met 8R-AWN 1943 | -9/Exiles | Met EX-HEX 1982 | -9/Exiles | Met EX-BIN 2006 | -9/Exiles | Aligned with FarCom system 2008 | -9/Exiles | Given EX-Vault access code 2042 | -9/Exiles | Opened EX-Vault 2055 | -9/Exiles | Found Trap Reconfigurator 2099 | -9/Exiles | Warned to stay clear of 0b10 Research branches 2148 | -9/Exiles | Met EX-DEC 2385 | -9/Exiles | Discovered new exit (range 11) 2407 | -9/Exiles | Identified exit to Mines 2409 | -9/Exiles | Left Exiles lab with Trap Reconfigurator 2409 | -9/Exiles | Entered Mines 2532 | -8/Mines | Discovered new exit (range 11) 2533 | -8/Mines | Build established: Hauler-Mutant 2837 | -8/Mines | Identified exit to Materials 2909 | -8/Mines | Entered Materials 2909 | -8/Materials | Evolved 2 slots: Weapon x2 2910 | -8/Materials | Identified exit to Storage 2910 | -8/Materials | Identified exit to Factory 3060 | -8/Materials | Entered Storage 3382 | -8/Storage | Lost 6 parts (2n4w) 3398 | -8/Storage | Destroyed 7 combat bots 3722 | -8/Storage | Build established: Hauler-Skirmisher 4199 | -8/Storage | Assisted by bots powering up and referring to "LRC-V3" 4475 | -8/Storage | Build established: Commander-Skirmisher 4485 | -8/Storage | Discovered exit to Factory (range 5) 4725 | -8/Storage | Entered Factory 4725 | -7/Factory | Accompanied by 6 allies 4725 | -7/Factory | Evolved 2 slots: Utility x2 4936 | -7/Factory | Garrison activated, responded to threat 5000 | -7/Factory | Identified exit to Garrison 5195 | -7/Factory | Garrison activated, responded to threat 5277 | -7/Factory | Build established: Scavenger-Skirmisher 5316 | -7/Factory | Entered Garrison 5316 | -7/Garrison | Accompanied by 3 allies 5328 | -7/Garrison | Installed Relay Interface Framework 5447 | -7/Garrison | Phase Generator disabled 5496 | -7/Garrison | Triggered checkpoint 6298 | -7/Garrison | Triggered checkpoint 6322 | -7/Garrison | Garrison Relay disabled 6750 | -7/Garrison | Discovered new exit (range 15) 6992 | -7/Garrison | Triggered checkpoint 7034 | -7/Garrison | Triggered checkpoint 7060 | -7/Garrison | Lost 4 parts (1p3w) 7277 | -7/Garrison | Triggered checkpoint 7651 | -7/Garrison | Discovered new exit (range 10) 7678 | -7/Garrison | Entered Factory 8109 | -7/Factory | Garrison activated, responded to threat 8196 | -7/Factory | Build established: Scavenger-Mutant 8289 | -7/Factory | Identified exit to Garrison 8289 | -7/Factory | Entered Garrison 8289 | -7/Garrison | Accompanied by 1 ally 8320 | -7/Garrison | Phase Generator disabled 8424 | -7/Garrison | Triggered checkpoint 8538 | -7/Garrison | Build established: Scavenger-Skirmisher 8652 | -7/Garrison | Garrison Relay disabled 8730 | -7/Garrison | Triggered checkpoint 8758 | -7/Garrison | Triggered checkpoint 8809 | -7/Garrison | Destroyed 7 combat bots 8920 | -7/Garrison | Triggered checkpoint 9080 | -7/Garrison | Garrison Relay disabled 9208 | -7/Garrison | Discovered new exit (range 15) 9349 | -7/Garrison | Discovered new exit (range 14) 9468 | -7/Garrison | Garrison Relay disabled 9708 | -7/Garrison | Discovered new exit (range 10) 9768 | -7/Garrison | Expanded RIF knowledge: Zone Cloak 9808 | -7/Garrison | Triggered checkpoint 9894 | -7/Garrison | Garrison Relay disabled 10064 | -7/Garrison | Triggered checkpoint 10175 | -7/Garrison | Build established: Bothacker-Mutant 10609 | -7/Garrison | Entered Factory 10609 | -6/Factory | Accompanied by 3 allies 10609 | -6/Factory | Evolved 2 slots: Power x1, Utility x1 11050 | -6/Factory | Build established: Bothacker-Gunner 11362 | -6/Factory | Identified exit to Lower Caves 11400 | -6/Factory | Found Prototype Launcher 11400 | -6/Factory | Identified Scatter Rocket Array 11762 | -6/Factory | Entered Lower Caves 11762 | -6/Lower Caves | Accompanied by 4 allies 11763 | -6/Lower Caves | A Derelict revealed a hidden shortcut to meet someone special 11777 | -6/Lower Caves | Entered Data Miner 11777 | -6/Data Miner | Accompanied by 4 allies 11777 | -6/Data Miner | Discovered new exit (range 6) 11812 | -6/Data Miner | Met Data Miner 11844 | -6/Data Miner | Learned location of Section 7 (-2) 11844 | -6/Data Miner | Acquired the access code to Warlord's prototype stash 11876 | -6/Data Miner | Received God Mode back door access code from Data Miner 11927 | -6/Data Miner | Entered Proximity Caves 11927 | -5/Proximity Caves | Accompanied by 4 allies 11997 | -5/Proximity Caves | Escorted by Enhanced Grunt 11997 | -5/Proximity Caves | Attracted the attention of an 0b10 outpost 12153 | -5/Proximity Caves | Learned Factory garrison access intel 12162 | -5/Proximity Caves | Identified exit to Factory 12339 | -5/Proximity Caves | P-70 Sage assimilated allied Administrator 5a 12616 | -5/Proximity Caves | Build established: Scavenger-Gunner 12760 | -5/Proximity Caves | Entered Factory 12760 | -5/Factory | Accompanied by 1 ally 12760 | -5/Factory | Evolved 2 slots: Propulsion x2 12761 | -5/Factory | Identified exit to Upper Caves 12762 | -5/Factory | Loaded intel: 4 garrison access locations 12826 | -5/Factory | Discovered new exit (range 36) 13844 | -5/Factory | Garrison activated, responded to threat 13904 | -5/Factory | Lost 5 parts (1p1n2u1w) 13974 | -5/Factory | Lost 3 parts (1n1u1w) 14217 | -5/Factory | Lost 5 parts (2n3w) 14347 | -5/Factory | Discovered new exit (range 12) 14370 | -5/Factory | Entered Extension 14443 | -5/Extension | Rescued a captive Derelict 14479 | -5/Extension | Build established: Scavenger-Mutant 14834 | -5/Extension | Identified exit to Cetus 14834 | -5/Extension | Identified exit to Factory 14838 | -5/Extension | Rescued A7 14973 | -5/Extension | Build established: Scavenger-Skirmisher 15050 | -5/Extension | Spotted B-75 Beast 15054 | -5/Extension | Rescued a captive Derelict 15054 | -5/Extension | Rescued a captive Derelict 15063 | -5/Extension | Spotted B-75 Beast 15099 | -5/Extension | Allies destroyed B-75 Beast 15108 | -5/Extension | Allies destroyed B-75 Beast 15120 | -5/Extension | Disrupted transfer network 15343 | -5/Extension | Rescued a captive Derelict 15536 | -5/Extension | Core integrity fell below 50% 15654 | -5/Extension | Rescued a captive Derelict 15754 | -5/Extension | Extracted ID and sensor layout for unrecognized location from A7's data core 15759 | -5/Extension | Disrupted transfer network 15822 | -5/Extension | Entered Cetus 15822 | -5/Cetus | Accompanied by 13 allies 15834 | -5/Cetus | Spotted Cetus Guard 15836 | -5/Cetus | Spotted Cetus Guard 15837 | -5/Cetus | Spotted Cetus Guard 15837 | -5/Cetus | Spotted Cetus Guard 15847 | -5/Cetus | Allies destroyed Cetus Guard 15856 | -5/Cetus | Allies destroyed Cetus Guard 15856 | -5/Cetus | Allies destroyed Cetus Guard 15858 | -5/Cetus | Allies destroyed Cetus Guard 16062 | -5/Cetus | Incoming investigation squad redirected 16117 | -5/Cetus | System corruption reached 10% 16133 | -5/Cetus | Core integrity fell below 20% 16141 | -5/Cetus | Build established: Scavenger-Tank 16174 | -5/Cetus | Lost 7 parts (4u3w) 16175 | -5/Cetus | Destroyed 7 combat bots 16569 | -5/Cetus | Destroyed 7 combat bots 16574 | -5/Cetus | Lost 3 parts (1p1u1w) 16734 | -5/Cetus | Discovered new exit (range 16) 16761 | -5/Cetus | Entered Archives 16889 | -5/Archives | Lost 3 parts (1p2w) 17039 | -5/Archives | Unable to access archive contents 17129 | -5/Archives | Unable to access archive contents 17156 | -5/Archives | Discovered new exit (range 13) 17215 | -5/Archives | Discovered new exit (range 15) 17236 | -5/Archives | Build established: Scavenger-Skirmisher 17274 | -5/Archives | Discovered exit to Factory (range 15) 17362 | -5/Archives | Entered Hub_04(d) 17491 | -5/Hub_04(d) | Lost 4 parts (1p2n1w) 17515 | -5/Hub_04(d) | Released all parts (11) 17524 | -5/Hub_04(d) | Entered Factory 17524 | -4/Factory | Evolved 2 slots: Utility x2 18041 | -4/Factory | Lost 3 parts (1p1n1w) 18109 | -4/Factory | Identified exit to Upper Caves 18109 | -4/Factory | Identified exit to Armory 18109 | -4/Factory | Identified exit to Research 18129 | -4/Factory | Entered Upper Caves 18134 | -4/Upper Caves | Build established: Mutant 18303 | -4/Upper Caves | Encountered a Warlord checkpoint 18529 | -4/Upper Caves | Learned 4 Research zone layouts 18651 | -4/Upper Caves | Core integrity fell below 50% 18681 | -4/Upper Caves | Lost 3 parts (1p1u1w) 18728 | -4/Upper Caves | Build established: Scavenger-Mutant 18957 | -4/Upper Caves | Learned location of Quarantine (-2) 19330 | -4/Upper Caves | Build established: Scavenger-Skirmisher 19383 | -4/Upper Caves | Discovered new exit (range 5) 19391 | -4/Upper Caves | Entered another Upper Caves area 19440 | -4/Upper Caves | Lost 5 parts (1n2u1w) 19647 | -4/Upper Caves | Discovered exit to Research (range 7) 19659 | -4/Upper Caves | Entered Research 19659 | -3/Research | Evolved 2 slots: Utility x1, Weapon x1 19713 | -3/Research | Build established: Scavenger-Mutant 20504 | -3/Research | System corruption reached 10% 20726 | -3/Research | Identified exit to Garrison 20726 | -3/Research | Entered Garrison 20766 | -3/Garrison | Triggered checkpoint 20858 | -3/Garrison | Garrison Relay disabled 20980 | -3/Garrison | Spotted B-86 Titan 21091 | -3/Garrison | Build established: Scavenger-Tank 21480 | -3/Garrison | Lost 9 parts (1p3n2u3w) 21489 | -3/Garrison | Released all parts (11) 21519 | -3/Garrison | Lost 6 parts (1p2n2u1w) 21800 | -3/Garrison | Triggered checkpoint 21894 | -3/Garrison | Core integrity fell below 50% 21904 | -3/Garrison | Triggered checkpoint 21909 | -3/Garrison | Discovered new exit (range 8) 21915 | -3/Garrison | Expanded RIF knowledge: Autooverride 21918 | -3/Garrison | Entered Research 21937 | -3/Research | Lost 7 parts (3n3u1w) 22157 | -3/Research | Build established: Mutant 22195 | -3/Research | Crushed by falling debris 22195 | -3/Research | Core integrity fell below 20% 22292 | -3/Research | Destroyed by G-67 Veteran with Plasma Rifle Last Messages --------------- Investigation squad. 22278_ O-32 Director sends out distress signal. 22278_ O-32 Director: "IFF HANDSHAKE FAILED. SECURING TERMINAL." 22282_ Detecting nearby Garrison Access. 22288_ Connecting with Terminal... >>Query(Seraph) One of many contingency plans devised on the [ISCS Cetus] meant to one day deal with a potential alien threat. Project Seraph was deployed in 2211 in response to the [2210] [ISC] message from [Earth]. A powerful artificial intelligence dubbed "[MAIN.C]" was put in control of one of the ship's manufacturing facilities which was then detached and dropped on [Tau Ceti IV]. Its goal was to build a false civilization and construct facilities to mimic the presence of human activity on the planet in order to lure the [Sigix] there and eliminate them or at least learn their weaknesses. Any information gained through this organically self-designed experiment was to be broadcasted in as many directions as possible to alert any surviving Humans. 22289_ Dropped Ionic Axe. 22289_ Terminal disabled. Map ----- +----------------------------------------------------+ | ?????????????????????????????????????????????????? | | ?????????????????????????????????????????????????? | | ?????????????????????????????????????????????????? | | ?????????????????????????????????????????????????? | | ?????????????????????????????????????????????????? | | ?????????????????????????????????????????????????? | | ?????????????????????????????????????????????????? | | ?????????????????????????????????????????????????? | | ?????????????????w???????????????????????????????? | | ?????????????????????????????????????????????????? | | ?????????????????????????????????????????????????? | | ?????????????????????????????????????????????????? | | ?????????????????? ?????? ???????????????????????? | | ???????????????? ????? ?#?????????????????????? | | ????????????????? ???? #?????????Y???????????? | | ?????????????????? ??? #?????????????????????? | | ?????????????????? """ #?????????????????????? | | ??????????????????? """ #?????????????????????? | | ???????????????????? """ +?????????????????????? | | ????????????????????? #?????????????????????? | | ????????????????????? #?????????????????????? | | ?????????????????????? ! #?????????????????????? | | ??????????????????????? ??????????????????????? | | ??????????????##########/####????????????????????? | | ??????????????# """ """g #????????????????????? | | ??????????????# """ " "g@ #????????????????????? | | ??????????????# / g #????????????????????? | | ??????????????# g #????????????????????? | | ??????????????# #????????????????????? | | ??????????????# #????????????????????? | | ??????????????#######p###########????????????????? | | ??????????????#### g g o ???????+?????? | | ??????????????#T"# ?????? #?????? | | ?????# ######## "# ????? #?????? | | ?????+ ?????? #?????? | | ?????# ############+#+#############????? #?????? | | ??????????# #??????????? #?????? | | ??????????# #?????????? #?????? | | ??????????# """ """ """ ########### #?????? | | ??????????# """ """ """ + #?????? | | ??????????# """ """ """ ######## #?????? | | ??????????# #??????# #?????? | | ??????????# #?????## #?????? | | ??????????###################??#### # #?????? | | ???????????????????????????????# T # #?????? | | ???????????????????????????????# ## #? ????? | | ???????????????????????????????# ######?? ??? | | ???????????????????????????????# #???????? ? | | ???????????????????????????????# #????????? | | ???????????????????????????????# #??????????###+#? | +----------------------------------------------------+ Best States ------------- Heat Dissipation 135 Coolant Potential 100 Energy Generation 51 Energy Capacity 550 Matter Stores 400 Matter Capacity 400 Sight Range 22 Robot Scan Range 16 Terrain Scan Density 85 ECM Strength 3 Power Amplification 30 Armor Coverage 600 Resistance: KI 25 Weapon Cycling 20 Phase Shifting 10 Evasion (%) 53 Targeting Accuracy 8 Melee Accuracy 6 Target Analysis 8 Armor Integrity Analysis 33 Recoil Reduction 4 Particle Charging 25 Salvage Targeting 4 Offensive Hacking 24 Defensive Hacking 25 Relay Coupler Types 90 Relay Coupler Value 2 Item Schematics ----------------- Imp. Proton Missile Launcher | -6/Factory | Scanalyzed Flexi-carbon Leg | -6/Factory | Scanalyzed Combat Drone Bay | -6/Data Miner | Free Lgt. Regenerative Plating | -6/Data Miner | Free Exp. Terrain Scanner | -6/Data Miner | Free Exp. Targeting Computer | -6/Data Miner | Free Tactical Coordination Suite | -6/Data Miner | Free Exp. ECM Suite | -6/Data Miner | Free Robot Schematics ------------------ Y-54 Guardian | -7/Factory | Hacked S-27 Virus | -6/Data Miner | Free G-50 Soldier | -6/Data Miner | Free X-72 Disruptor | -6/Data Miner | Free H-66 Slayer | -6/Data Miner | Free P-70 Sage | -6/Data Miner | Free I-36 Angel | -6/Data Miner | Free Fabricated ------------ Nothing Alien Tech Used ----------------- None Achievements -------------- Streaker Challenges ------------ None Game ------ Seed InsulatedLegEdition Manual? 0 Play Time 02:44:47 Cumulative 302.3 hours Start 2021.02.01 @ 23:22:44 End 2021.04.01 @ 21:46:03 Sessions 6 Manual Loads 0 Difficulty Rogue Special Mode None Game No. 442 Rogue 441 Adventurer 0 Explorer 1 Win Type - Total 2 Types 2/0/0/0/0/0/0/0/0 Lore% 68 Gallery% 81 Achievement% 57 Wizard Run 0 Options --------- ASCII 1 Keyboard 1 Movement Vi Keybinds 0 Fullscreen 2 Font 14/Cog Map View 72x54 Tactical HUD 1 Map Filters NONE Filters LOW_CONTRAST(13,24,33) Steam 0 RUN: 4cb4e1ef-3ec7-437c-9d0e-afd5dcf2e7c7